fUSD/lending_fUSD_20260307
["ID","MTS","AMOUNT","RATE_DAILY","PERIOD"]
[407866254,1772845837752,-2000.0,0.0001582,2]
[407866255,1772845837762,-2000.0,0.0001582,2]
[407866256,1772845837772,-2726.08,0.0001583,10]
[407866257,1772845837781,-200.0,0.00015886,2]
[407866258,1772845837791,-546.47179689,0.0001589,2]
[407866259,1772845837807,-150.0,0.000159,2]
[407866260,1772845837816,-150.0,0.000159,2]
[407866261,1772845837825,-150.0,0.000159,2]
[407866262,1772845837834,-2660.89642746,0.000159,2]
[407866263,1772845837845,-2000.0,0.0001592,2]
[407866264,1772845837855,-2000.0,0.0001592,2]
[407866265,1772845837867,-250.0,0.00015927,2]
[407866266,1772845837878,-250.0,0.00015927,7]
[407866267,1772845837889,-258.69744367,0.0001596,2]
[407866268,1772845837898,-780.83,0.00015991,2]
[407866269,1772845837909,-8000.0,0.00016,2]
[407866270,1772845837919,-382.80600535,0.00016,2]
[407866271,1772845837929,-2004.97753483,0.00016008,2]
[407866272,1772845837939,-421.8946451,0.0001602,2]
[407866273,1772845837950,-2000.0,0.0001602,2]
[407866274,1772845837960,-2000.0,0.0001602,2]
[407866275,1772845837969,-876.76,0.00016045,2]
[407866276,1772845837979,-244.5,0.00016072,2]
[407866277,1772845837990,-500.0,0.00016099,2]
[407866278,1772845838000,-278.57186039,0.00016099,2]
[407866280,1772845838009,-382.80600535,0.000161,2]
[407866282,1772845838018,-7979.49,0.00016116,2]
[407866284,1772845838027,-2000.0,0.0001612,2]
[407866286,1772845838036,-2000.0,0.0001612,2]
[407866288,1772845838045,-262.84,0.00016161,2]
[407866290,1772845838054,-5000.00202638,0.000162,5]
[407866292,1772845838063,-382.80600535,0.000162,2]
[407866294,1772845838072,-151.0,0.00016207,2]
[407866296,1772845838082,-5659.628,0.0001621,2]
[407866298,1772845838091,-220.392,0.0001621,2]
[407866299,1772845838101,-226.77,0.0001621,2]
[407866301,1772845838111,-500.0,0.00016219,2]
[407866304,1772845838120,-2000.0,0.0001622,2]
[407866305,1772845838129,-2000.0,0.0001622,2]
[407866307,1772845838138,-300.0,0.00016255,2]
[407866309,1772845838147,-780.83,0.00016265,2]
[407866311,1772845838156,-2000.0,0.0001632,2]
[407866313,1772845838164,-2000.0,0.0001632,2]
[407866315,1772845838173,-150.0,0.000164,2]
[407866316,1772845838182,-213.0,0.000164,2]
[407866317,1772845838190,-302.46,0.000164,2]
[407866318,1772845838199,-352.32802655,0.000164,2]
[407866319,1772845838208,-506.0,0.00016401,4]
[407866320,1772845838217,-12755.09128668,0.00016404,2]
[407866321,1772845838225,-1500.0,0.0001642,2]
[407866322,1772845838234,-2800.840232,0.0001642,2]
[407866323,1772845838242,-226.306468,0.00016435,2]
[407866324,1772845838251,-228.32,0.00016438,2]
[407866325,1772845838260,-226.77,0.0001648,2]
[407866326,1772845838268,-5446.34392361,0.00016528,2]
[407866327,1772845838277,-780.83,0.00016538,2]
[407866328,1772845838285,-1252.0,0.00016592,2]
[407866329,1772845838294,-244.5,0.0001669,2]
[407866330,1772845838303,-1600.0,0.00016696,2]
[407866331,1772845838312,-166.34,0.00016712,2]
[407866332,1772845838321,-226.77,0.0001675,2]
[407866333,1772845838329,-5800.0,0.000169,6]
[407866334,1772845838339,-5621.12574049,0.000169,3]
[407866335,1772845838349,-2450.3,0.00016913,2]
[407866336,1772845838358,-3675.44,0.00016913,2]
[407866337,1772845838368,-1903.964411,0.00016958,7]
[407866338,1772845838379,-500.0,0.00016999,2]
[407866339,1772845838388,-500.0,0.00016999,2]
[407866340,1772845838399,-500.0,0.00016999,2]
[407866341,1772845838408,-500.0,0.00016999,2]
[407866342,1772845838418,-194617.58720467,0.00017,2]
[407866343,1772845838427,-300.0,0.00017,2]
[407866344,1772845838437,-4609.0,0.00017001,2]
[407866345,1772845838446,-226.77,0.0001702,2]
[407866346,1772845838455,-155.0,0.00017146,2]
[407866347,1772845838464,-500.0,0.00017203,2]
[407866348,1772845838473,-812.126911,0.00017203,7]
[407866349,1772845838482,-200.0,0.00017245,2]
[407866350,1772845838491,-12755.09128668,0.00017278,2]
[407866351,1772845838501,-226.77,0.0001729,2]
[407866352,1772845838510,-506.0,0.00017395,5]
[407866353,1772845838519,-226.77,0.0001756,2]
[407866354,1772845838528,-226.306468,0.0001759,2]
[407866355,1772845838536,-5446.34392361,0.00017652,2]
[407866356,1772845838545,-800.0,0.00017808,2]
[407866357,1772845838555,-226.77,0.0001783,2]
[407866358,1772845838565,-1484.34556035,0.000179,2]
[407866359,1772845838575,-1484.34556033,0.000179,2]
[407866360,1772845838586,-1484.34556033,0.000179,2]
[407866361,1772845838595,-1484.34556033,0.000179,2]
[407866362,1772845838605,-421.8946451,0.0001796,2]
[407866363,1772845838614,-1625.45032244,0.00017986,2]
[407866364,1772845838623,-226.77,0.000181,2]
[407866365,1772845838632,-2129.0,0.00018103,2]
[407866366,1772845838642,-500.0,0.00018107,2]
[407866367,1772845838653,-270.90838707,0.00018148,2]
[407866368,1772845838663,-8924.19858494,0.00018152,2]
[407866369,1772845838677,-1254.41808677,0.00018152,2]
[407866370,1772845838689,-1700.99268707,0.00018152,2]
[407866371,1772845840406,-500.0,0.00013698,2]
[407866372,1772845840416,-500.0,0.00013698,2]
[407866373,1772845840425,-500.0,0.00013698,2]
[407866374,1772845840434,-11475.86644196,0.00015496,2]
[407866375,1772845840443,-500.0,0.00015547,2]
[407866376,1772845840454,-875.4819279,0.00018152,2]
[407866379,1772845840581,-500.9565902,0.00018207,2]
[407866381,1772845840591,-270.90838707,0.00018328,2]
[407866382,1772845840600,-226.77,0.0001837,2]
[407866384,1772845840610,-506.0,0.00018389,6]
[407866385,1772845840621,-168.0,0.00018407,2]
[407866386,1772845840631,-253.0,0.00018413,30]
[407866387,1772845840641,-344.0,0.0001843,2]
[407866388,1772845840654,-272.0,0.00018443,2]
[407866389,1772845840663,-272.0,0.00018451,2]
[407866390,1772845840675,-168.0,0.000185,2]
[407866391,1772845840685,-270.90838707,0.00018507,2]
[407866392,1772845840696,-200.0,0.00018563,2]
[407866393,1772845840706,-595.0,0.00018605,2]
[407866394,1772845840717,-250.0,0.00018605,2]
[407866395,1772845840727,-250.0,0.00018605,2]
[407866396,1772845840737,-250.0,0.00018605,2]
[407866397,1772845840747,-250.0,0.00018605,2]
[407866398,1772845840757,-250.0,0.00018605,2]
[407866399,1772845840769,-250.0,0.00018605,2]
[407866400,1772845840780,-250.0,0.00018605,2]
[407866401,1772845840792,-250.0,0.00018605,2]
[407866402,1772845840805,-187.0,0.00018605,2]
[407866403,1772845840814,-226.77,0.0001864,2]
[407866404,1772845840823,-500.0,0.00018664,2]
[407866405,1772845840835,-500.0,0.00018664,2]
[407866406,1772845840845,-508.69,0.00018664,2]
[407866407,1772845840855,-500.0,0.00018664,2]
[407866408,1772845840864,-500.0,0.00018664,2]
[407866409,1772845840875,-500.0,0.00018664,2]
[407866410,1772845840885,-500.0,0.00018664,2]
[407866411,1772845840895,-500.0,0.00018664,2]
[407866412,1772845840904,-500.0,0.00018664,2]
[407866413,1772845840914,-272.0,0.00018665,2]
[407866414,1772845840923,-153.0,0.00018672,30]
[407866415,1772845840932,-168.0,0.00018683,2]
[407866416,1772845840941,-481.0,0.00018701,2]
[407866417,1772845840950,-155.0,0.00018704,2]
[407866418,1772845840972,-1000.0,0.00018712,2]
[407866419,1772845840988,-500.0,0.00018723,2]
[407866420,1772845840999,-500.0,0.00018723,2]
[407866421,1772845841008,-226.306468,0.00018745,2]
[407866422,1772845841020,-224.0,0.00018756,30]
[407866423,1772845841029,-5446.34392361,0.00018776,2]
[407866424,1772845841039,-272.0,0.00018846,2]
[407866425,1772845841050,-590.0,0.00018867,2]
[407866426,1772845841059,-150.0,0.00018867,2]
[407866427,1772845841070,-150.0,0.00018867,2]
[407866428,1772845841080,-150.0,0.00018867,2]
[407866429,1772845841089,-150.0,0.00018867,2]
[407866430,1772845841099,-150.0,0.00018867,2]
[407866431,1772845841110,-150.0,0.00018867,2]
[407866432,1772845841119,-150.0,0.00018867,2]
[407866433,1772845841128,-277.0,0.00018867,2]
[407866434,1772845841138,-272.0,0.00018872,2]
[407866435,1772845841149,-226.77,0.0001891,2]
[407866436,1772845841158,-225.0,0.00018912,30]
[407866437,1772845841168,-172.74325605,0.00018924,2]
[407866438,1772845841179,-160.0,0.00018924,2]
[407866439,1772845841189,-350.0,0.00019,2]
[407866440,1772845841199,-12755.09128668,0.00019026,2]
[407866441,1772845841210,-272.0,0.00019077,2]
[407866442,1772845841220,-2148.8308,0.0001908,2]
[407866443,1772845841230,-226.77,0.0001918,2]
[407866444,1772845841248,-2000.0,0.000192,2]
[407866445,1772845841261,-1000.0,0.000192,2]
[407866446,1772845841272,-168.0,0.00019247,2]
[407866447,1772845841281,-168.0,0.00019285,2]
[407866448,1772845841294,-272.0,0.00019306,2]
[407866449,1772845841304,-183.0,0.00019347,30]
[407866450,1772845841313,-272.0,0.00019359,2]
[407866451,1772845841323,-506.0,0.00019382,7]
[407866452,1772845841332,-272.0,0.00019385,2]
[407866453,1772845841342,-576.0,0.00019398,2]
[407866454,1772845841351,-150.0,0.00019398,2]
[407866455,1772845841361,-150.0,0.00019398,2]
[407866456,1772845841370,-150.0,0.00019398,2]
[407866457,1772845841379,-150.0,0.00019398,2]
[407866458,1772845841391,-150.0,0.00019398,2]
[407866459,1772845841400,-162.0,0.00019398,2]
[407866460,1772845841413,-7800.0,0.000194,7]
[407866461,1772845841423,-226.77,0.0001945,2]
[407866462,1772845841432,-272.0,0.00019475,2]
[407866463,1772845841441,-9700.0,0.000195,7]
[407866464,1772845841450,-168.0,0.00019538,2]
[407866465,1772845841460,-1900.0,0.000196,7]
[407866466,1772845841469,-272.0,0.0001966,2]
[407866467,1772845841479,-272.0,0.00019677,2]
[407866468,1772845841489,-150.0,0.000197,30]
[407866469,1772845841498,-281.0,0.000197,30]
[407866470,1772845841510,-1900.0,0.000197,7]
[407866471,1772845841519,-226.77,0.0001972,2]
[407866472,1772845841530,-1787.0,0.00019742,2]
[407866473,1772845841539,-12251.49,0.00019765,2]
[407866474,1772845841550,-272.0,0.00019767,2]
[407866475,1772845841559,-272.0,0.00019772,2]
[407866476,1772845841569,-293.0,0.00019794,2]
[407866477,1772845841578,-500.0,0.00019799,2]
[407866478,1772845841588,-1900.0,0.000198,7]
[407866479,1772845841598,-200.0,0.00019842,2]
[407866480,1772845841609,-782.24766861,0.0001989,2]
[407866481,1772845841620,-226.306468,0.000199,2]
[407866482,1772845841629,-421.8946451,0.000199,2]
[407866483,1772845841639,-12755.09128668,0.000199,2]
[407866484,1772845841650,-1900.0,0.000199,7]
[407866485,1772845841659,-5446.34392361,0.000199,2]
[407866486,1772845841668,-1062.98319122,0.000199,3]
[407866487,1772845841678,-1855.7120849,0.000199,2]
[407866488,1772845841687,-365.64320908,0.000199,2]
[407866489,1772845841696,-226.47003982,0.000199,2]
[407866490,1772845841705,-157.40983265,0.000199,2]
[407866491,1772845841715,-34079.36298315,0.000199,2]
[407866492,1772845841724,-2945.57,0.0001995,7]
[407866493,1772845841733,-37187.0,0.00019973,2]
[407866494,1772845841742,-226.77,0.0001999,2]
[407866495,1772845841752,-782.24766861,0.0001999,2]
[407866496,1772845841761,-782.24766861,0.0001999,2]
[407866497,1772845841770,-374.0,0.00019992,2]
[407866498,1772845841780,-151.0,0.00019996,2]
[407866499,1772845841790,-151.0,0.00019997,2]
[407866500,1772845841803,-500.0,0.00019998,2]
[407866501,1772845841815,-500.0,0.00019998,2]
[407866502,1772845841824,-508.69,0.00019998,2]
[407866503,1772845841835,-500.0,0.00019998,2]
[407866504,1772845841845,-500.0,0.00019998,2]
[407866505,1772845841855,-500.0,0.00019998,2]
[407866506,1772845841872,-500.0,0.00019998,2]
[407866507,1772845841885,-500.0,0.00019998,2]
[407866508,1772845841896,-500.0,0.00019998,2]
[407866509,1772845841906,-500.0,0.00019998,2]
[407866510,1772845841915,-300.0,0.00019999,2]
[407866511,1772845841925,-5204.8036775,0.00019999,2]
[407866512,1772845841935,-215751.9765081,0.00019999,2]
[407866513,1772845841945,-32478.3326369,0.00019999,2]
[407866514,1772845841956,-500.0,0.00019999,2]
[407866515,1772845841971,-500.0,0.00019999,2]
[407866516,1772845841982,-500.0,0.00019999,2]
[407866517,1772845841991,-500.0,0.00019999,2]
[407866518,1772845842001,-500.0,0.00019999,2]
[407866519,1772845842010,-500.0,0.00019999,2]
[407866520,1772845842021,-500.0,0.00019999,2]
[407866521,1772845842033,-500.0,0.00019999,2]
[407866522,1772845842044,-500.0,0.00019999,2]
[407866523,1772845842053,-500.0,0.00019999,2]
[407866524,1772845842062,-500.0,0.00019999,2]
[407866525,1772845842071,-500.0,0.00019999,2]
[407866526,1772845842083,-500.0,0.00019999,2]
[407866527,1772845842093,-500.0,0.00019999,2]
[407866528,1772845842104,-485.29077404,0.00019999,2]
[407866529,1772845842115,-500.0,0.00019999,2]
[407866530,1772845842124,-500.0,0.00019999,2]
[407866531,1772845842134,-500.0,0.00019999,2]
[407866532,1772845842143,-500.0,0.00019999,2]
[407866533,1772845842153,-500.0,0.00019999,2]
[407866534,1772845842164,-500.0,0.00019999,2]
[407866535,1772845842174,-500.0,0.00019999,2]
[407866536,1772845842184,-414.0365927,0.00019999,2]
[407866537,1772845842193,-500.0,0.00019999,2]
[407866538,1772845842203,-500.0,0.00019999,2]
[407866539,1772845842213,-500.0,0.00019999,2]
[407866540,1772845842222,-500.0,0.00019999,2]
[407866541,1772845842232,-500.0,0.00019999,2]
[407866542,1772845842241,-500.0,0.00019999,2]
[407866543,1772845842251,-500.0,0.00019999,2]
[407866544,1772845842260,-500.0,0.00019999,2]
[407866545,1772845842269,-384.18167893,0.00019999,2]
[407866546,1772845842279,-508.69,0.00019999,2]
[407866547,1772845842288,-508.69,0.00019999,2]
[407866548,1772845842297,-508.69,0.00019999,2]
[407866549,1772845842307,-508.69,0.00019999,2]
[407866550,1772845842317,-508.69,0.00019999,2]
[407866551,1772845842326,-508.69,0.00019999,2]
[407866552,1772845842336,-508.69,0.00019999,2]
[407866553,1772845842345,-508.69,0.00019999,2]
[407866554,1772845842356,-508.69,0.00019999,2]
[407866555,1772845842365,-508.69,0.00019999,2]
[407866556,1772845842375,-508.69,0.00019999,2]
[407866557,1772845842384,-508.69,0.00019999,2]
[407866558,1772845842393,-508.69,0.00019999,2]
[407866559,1772845842404,-508.69,0.00019999,2]
[407866560,1772845842413,-508.69,0.00019999,2]
[407866561,1772845842423,-508.69,0.00019999,2]
[407866562,1772845842432,-508.91508127,0.00019999,2]
[407866563,1772845842442,-500.0,0.00019999,2]
[407866564,1772845842451,-437.89413426,0.00019999,2]
[407866565,1772845842461,-500.0,0.00019999,2]
[407866566,1772845842471,-500.0,0.00019999,2]
[407866567,1772845842480,-500.0,0.00019999,2]
[407866568,1772845842490,-500.0,0.00019999,2]
[407866569,1772845842499,-500.0,0.00019999,2]
[407866570,1772845842508,-500.0,0.00019999,2]
[407866571,1772845842518,-500.0,0.00019999,2]
[407866572,1772845842527,-500.0,0.00019999,2]
[407866573,1772845842537,-500.0,0.00019999,2]
[407866574,1772845842548,-500.0,0.00019999,2]
[407866575,1772845842558,-500.0,0.00019999,2]
[407866576,1772845842567,-500.0,0.00019999,2]
[407866577,1772845842576,-500.0,0.00019999,2]
[407866578,1772845842585,-500.0,0.00019999,2]
[407866579,1772845842595,-500.0,0.00019999,2]
[407866580,1772845842604,-594.34099138,0.00019999,2]
[407866581,1772845842613,-500.0,0.00019999,2]
[407866582,1772845842623,-500.0,0.00019999,2]
[407866583,1772845842632,-500.0,0.00019999,2]
[407866584,1772845842641,-500.0,0.00019999,2]
[407866585,1772845842651,-500.0,0.00019999,2]
[407866586,1772845842662,-500.0,0.00019999,2]
[407866587,1772845842671,-503.7310091,0.00019999,2]
[407866588,1772845842681,-500.0,0.00019999,2]
[407866589,1772845842690,-500.0,0.00019999,2]
[407866590,1772845842699,-500.0,0.00019999,2]
[407866591,1772845842708,-500.0,0.00019999,2]
[407866592,1772845842718,-500.0,0.00019999,2]
[407866593,1772845842727,-648.25476107,0.00019999,2]
[407866594,1772845842736,-500.0,0.00019999,2]
[407866595,1772845842746,-500.0,0.00019999,2]
[407866596,1772845842756,-500.0,0.00019999,2]
[407866597,1772845842768,-500.0,0.00019999,2]
[407866598,1772845842779,-500.0,0.00019999,2]
[407866599,1772845842790,-500.0,0.00019999,2]
[407866600,1772845842806,-500.0,0.00019999,2]
[407866601,1772845842817,-500.0,0.00019999,2]
[407866602,1772845842826,-500.0,0.00019999,2]
[407866603,1772845842835,-379.68782672,0.00019999,2]
[407866604,1772845842846,-255.7089877,0.00019999,2]
[407866605,1772845842855,-3015.0,0.0002,2]
[407866606,1772845843133,-6260153.8542633,0.0002,2]
[407866608,1772845843209,-946168.23615947,0.0002,2]
[407866609,1772845843220,-132637.64876581,0.0002,2]
[407866610,1772845843230,-2953.57487299,0.0002,7]
[407866611,1772845843240,-501.242938,0.0002,10]
[407866612,1772845843249,-532.21530917,0.0002,7]
[407866613,1772845843258,-1435.21,0.0002,120]
[407866614,1772845843267,-12979.23134695,0.0002,2]
[407866615,1772845843276,-724.51160049,0.0002,120]
[407866616,1772845843285,-1834.01186954,0.0002,120]
[407866617,1772845843295,-966.86585572,0.0002,2]
[407866619,1772845843304,-301.26432731,0.0002,5]
[407866620,1772845843313,-209525.55538916,0.0002,2]
[407866621,1772845843326,-1474.82784586,0.0002,5]
[407866622,1772845843336,-422.21,0.0002,7]
[407866623,1772845843346,-153.70839791,0.0002,2]
[407866624,1772845843355,-151.0,0.0002,2]
[407866625,1772845843365,-151.0,0.0002,2]
[407866626,1772845843375,-1237444.99863367,0.0002,2]
[407866631,1772845890472,292.18697107,0.00011195,2]
[407866632,1772845890494,207.81302893,0.00011195,2]
[407866633,1772845935198,-1000.0,0.00011933,2]
[407866634,1772845935227,-2500.0,0.00011973,2]
[407866635,1772845935252,-1500.0,0.00013126,2]
[407866636,1772845939120,500.0,8e-05,2]
[407866637,1772845939604,500.0,8e-05,2]
[407866638,1772845940072,500.0,8e-05,2]
[407866639,1772845941455,500.0,8e-05,2]
[407866640,1772845941528,500.0,8e-05,2]
[407866641,1772845941647,500.0,8e-05,2]
[407866642,1772845941679,500.0,8e-05,2]
[407866643,1772845941752,416.47327386,8e-05,2]
[407866644,1772845941781,83.52672614,8e-05,2]
[407866645,1772845941916,759.56299303,8e-05,2]
[407866646,1772845941952,500.0,8e-05,2]
[407866647,1772845942000,500.0,8e-05,2]
[407866648,1772845942104,500.0,8e-05,2]
[407866649,1772845942147,500.0,8e-05,2]
[407866650,1772845942517,500.0,8e-05,2]
[407866651,1772845942609,500.0,8e-05,2]
[407866652,1772845942998,500.0,8e-05,2]
[407866653,1772845943072,500.0,8e-05,2]
[407866654,1772845943584,500.0,8e-05,2]
[407866655,1772845943694,500.0,8e-05,2]
[407866656,1772845943756,612.21875506,8e-05,2]
[407866657,1772845943983,500.0,8e-05,2]
[407866658,1772845944039,808.24431004,8e-05,2]
[407866659,1772845944077,500.0,8e-05,2]
[407866660,1772845944416,500.0,8e-05,2]
[407866661,1772845944515,500.0,8e-05,2]
[407866662,1772845944890,500.0,8e-05,2]
[407866663,1772845945186,500.0,8e-05,2]
[407866664,1772845945363,500.0,8e-05,2]
[407866665,1772845945661,500.0,8e-05,2]
[407866666,1772845945890,500.0,8e-05,2]
[407866667,1772845946113,500.0,8e-05,2]
[407866668,1772845946372,500.0,8e-05,2]
[407866669,1772845946734,500.0,8e-05,2]
[407866670,1772845947205,500.0,8e-05,2]
[407866671,1772845947721,500.0,8e-05,2]
[407866672,1772845948193,500.0,8e-05,2]
[407866673,1772845948720,500.0,8e-05,2]
[407866674,1772845949197,500.0,8e-05,2]
[407866675,1772845949688,832.56983976,8e-05,2]
[407866676,1772846047858,153.0,8e-05,3]
[407866677,1772846050221,155.0,8e-05,3]
[407866678,1772846106280,157.0,8e-05,3]
[407866679,1772846106582,154.0,8e-05,3]
[407866680,1772846108669,155.0,8e-05,3]
[407866681,1772846114628,-1200.0,0.00011419,2]
[407866682,1772846114656,-150.0,0.00011419,2]
[407866683,1772846114683,-300.0,0.00011419,2]
[407866684,1772846118044,1515.0,9.5e-05,3]
[407866685,1772846118562,1515.0,9.5e-05,3]
[407866686,1772846119055,1515.0,9.5e-05,3]
[407866687,1772846119349,151.0,9.5e-05,3]
[407866688,1772846119933,151.0,9.5e-05,3]
[407866689,1772846120453,151.0,9.5e-05,3]
[407866690,1772846120957,151.0,9.5e-05,3]
[407866691,1772846121446,151.0,9.5e-05,3]
[407866692,1772846122044,151.0,9.5e-05,3]
[407866693,1772846122498,500.0,0.00011195,2]
[407866694,1772846122536,151.0,9.5e-05,3]
[407866695,1772846123608,151.0,9.5e-05,3]
[407866696,1772846125933,151.0,9.5e-05,3]
[407866697,1772846155410,296.01,0.00011195,3]
[407866698,1772846155432,203.99,0.00011195,3]
[407866699,1772846167731,154.0,0.0001142,2]
[407866700,1772846241453,500.0,8e-05,2]
[407866701,1772846241643,500.0,8e-05,2]
[407866702,1772846242094,900.0,8e-05,2]
[407866703,1772846243265,500.0,8e-05,2]
[407866704,1772846246598,500.0,8e-05,2]
[407866705,1772846282338,150.0,0.00011419,2]
[407866706,1772846283918,254.0,0.00011419,2]
[407866707,1772846299373,-500.0,0.0001142,2]
[407866708,1772846299399,-500.0,0.0001142,2]
[407866709,1772846299419,-522.40279201,0.0001142,2]
[407866710,1772846299443,-500.0,0.0001142,2]
[407866711,1772846299465,-500.0,0.0001142,2]
[407866712,1772846299485,-500.0,0.0001142,2]
[407866713,1772846299505,-93.59720799,0.0001142,2]
[407866714,1772846341229,300.0,0.00011419,2]
[407866715,1772846374249,1765.32040195,0.00011409,2]
[407866716,1772846401199,1200.0,0.00011419,2]
[407866717,1772846402013,300.0,0.00011419,2]
[407866718,1772846403694,243.0,0.0001142,2]
[407866719,1772846412740,157.0,0.0001142,2]
[407866720,1772846461817,150.0,0.00011419,2]
[407866721,1772846471058,1144.52,7.377e-05,2]
[407866722,1772846471265,1078.17959805,7.765e-05,2]
[407866723,1772846471286,66.34040195,7.765e-05,2]
[407866724,1772846471484,1144.52,8.153e-05,2]
[407866725,1772846471702,1144.52,8.542e-05,2]
[407866726,1772846471935,1144.52,8.93e-05,2]
[407866727,1772846472296,1144.52,9.318e-05,2]
[407866728,1772846472528,1144.52,9.706e-05,2]
[407866729,1772846472759,1144.52,0.00010095,2]
[407866730,1772846472948,1144.52,0.00010483,2]
[407866731,1772846473258,1144.52,0.00010871,2]
[407866732,1772846473718,777.50959805,0.00011259,2]
[407866733,1772846473740,367.01040195,0.00011259,2]
[407866734,1772846540036,500.0,8e-05,2]
[407866735,1772846543449,500.0,8e-05,2]
[407866736,1772846545064,500.0,8e-05,2]
[407866737,1772846545538,500.0,8e-05,2]
[407866738,1772846546026,500.0,8e-05,2]
[407866739,1772846546554,500.0,8e-05,2]
[407866740,1772846546842,975.55067641,8e-05,2]
[407866741,1772846550452,500.0,8e-05,2]
[407866742,1772846551539,500.0,8e-05,2]
[407866743,1772846551734,500.0,8e-05,2]
[407866744,1772846551993,500.0,8e-05,2]
[407866745,1772846552469,500.0,8e-05,2]
[407866746,1772846552944,500.0,8e-05,2]
[407866747,1772846553972,500.0,8e-05,2]
[407866748,1772846554432,500.0,8e-05,2]
[407866749,1772846555436,500.0,8e-05,2]
[407866750,1772846555572,500.0,8e-05,2]
[407866751,1772846555949,500.0,8e-05,2]
[407866758,1772846707308,158.0,8e-05,3]
[407866762,1772846841942,800.0,8e-05,2]
[407866763,1772846844309,615.54682123,8e-05,2]
[407866764,1772846846604,500.0,8e-05,2]
[407866765,1772846847220,500.0,8e-05,2]
[407866766,1772846848588,500.0,8e-05,2]
[407866767,1772846851125,-164.69,0.00011315,2]
[407866768,1772846851147,-271.2649986,0.00011419,2]
[407866769,1772847006667,153.4650899,0.00010329,2]
[407866770,1772847006694,17.5349101,0.00010329,2]
[407866775,1772847031828,-1057.0,0.00011419,2]
[407866776,1772847031838,-150.0,0.00011419,2]
[407866777,1772847031848,-243.0,0.00011419,2]
[407866778,1772847031858,-250.0,0.00011419,2]
[407866779,1772847031868,-300.0,0.00011419,2]
[407866780,1772847031877,-300.0,0.00011419,14]
[407866781,1772847031887,-5000.0,0.0001142,2]
[407866782,1772847031897,-928.12246962,0.0001142,2]
[407866783,1772847031911,-646.55,0.0001142,2]
[407866784,1772847031920,-181.40279201,0.0001142,2]
[407866785,1772847031930,-500.0,0.0001142,2]
[407866786,1772847031940,-500.0,0.0001142,2]
[407866787,1772847031950,-500.0,0.0001142,2]
[407866788,1772847031959,-500.0,0.0001142,2]
[407866789,1772847031969,-500.0,0.0001142,2]
[407866790,1772847031979,-500.0,0.0001142,2]
[407866791,1772847031990,-500.0,0.0001142,2]
[407866792,1772847032000,-500.0,0.0001142,2]
[407866793,1772847032011,-500.0,0.0001142,2]
[407866794,1772847032021,-500.0,0.0001142,2]